fUSD/lending_fUSD_20250906
["ID","MTS","AMOUNT","RATE_DAILY","PERIOD"]
[383941226,1757187058640,-151.0,0.00032877,7]
[383941249,1757187058852,-268.975442,0.00032877,7]
[383941251,1757187058862,-151.0,0.00032877,7]
[383941253,1757187058872,-151.0,0.00032877,7]
[383941255,1757187058882,-151.0,0.00032877,7]
[383941257,1757187058894,-151.0,0.00032877,7]
[383941259,1757187058904,-151.0,0.00032877,7]
[383941261,1757187058914,-151.0,0.00032877,7]
[383941263,1757187058924,-151.0,0.00032877,7]
[383941265,1757187058933,-151.0,0.00032877,7]
[383941267,1757187058942,-151.0,0.00032877,7]
[383941269,1757187058951,-278.305176,0.00032877,7]
[383941271,1757187058960,-151.0,0.00032877,7]
[383941273,1757187058969,-151.0,0.00032877,7]
[383941275,1757187058978,-151.0,0.00032877,7]
[383941277,1757187058987,-160.211071,0.00032877,7]
[383941279,1757187058996,-151.0,0.00032877,7]
[383941281,1757187059005,-151.0,0.00032877,7]
[383941282,1757187059013,-151.0,0.00032877,7]
[383941284,1757187059023,-234.118284,0.00032877,7]
[383941286,1757187059032,-480.885614,0.00032877,7]
[383941288,1757187059041,-151.0,0.00032877,7]
[383941290,1757187059051,-480.885614,0.00032877,7]
[383941292,1757187059060,-480.885614,0.00032877,7]
[383941294,1757187059069,-480.885614,0.00032877,7]
[383941296,1757187059078,-224.81,0.00032889,120]
[383941298,1757187059088,-160.0,0.000329,7]
[383941300,1757187059097,-1100.0,0.000329,12]
[383941302,1757187059106,-334.4,0.000329,30]
[383941304,1757187059115,-1000.0,0.000329,7]
[383941306,1757187059124,-479.21041582,0.00032916,5]
[383941308,1757187059134,-3506.7463,0.0003299,2]
[383941310,1757187059143,-211.0,0.00032997,2]
[383941312,1757187059153,-16517.10177597,0.00033,3]
[383941313,1757187059165,-3011.38049103,0.00033,7]
[383941316,1757187059175,-3011.38049103,0.00033,3]
[383941317,1757187059185,-500.0,0.00033022,3]
[383941319,1757187059194,-500.0,0.00033022,2]
[383941321,1757187059203,-500.0,0.00033022,2]
[383941323,1757187059212,-500.0,0.00033022,2]
[383941325,1757187059222,-399.64270258,0.00033022,2]
[383941327,1757187059232,-500.0,0.00033022,2]
[383941329,1757187059241,-224.81,0.00033026,120]
[383941331,1757187059252,-211.0,0.00033026,2]
[383941333,1757187059261,-232.7537031,0.0003307,2]
[383941335,1757187059271,-166.67,0.00033097,2]
[383941337,1757187059280,-9733.02,0.000331,14]
[383941339,1757187059290,-1899.62297126,0.00033116,2]
[383941341,1757187059299,-12612.26469978,0.00033149,2]
[383941343,1757187059308,-224.81,0.00033163,120]
[383941345,1757187059318,-174.97,0.00033175,2]
[383941347,1757187059327,-151.0,0.00033216,7]
[383941349,1757187059336,-151.0,0.00033216,7]
[383941351,1757187059345,-151.0,0.00033216,7]
[383941353,1757187059355,-151.0,0.00033216,7]
[383941355,1757187059364,-151.0,0.00033222,7]
[383941357,1757187059373,-151.0,0.00033222,7]
[383941359,1757187059382,-151.0,0.00033222,7]
[383941361,1757187059392,-151.0,0.00033222,7]
[383941363,1757187059401,-151.0,0.00033222,7]
[383941365,1757187059411,-500.0,0.00033296,3]
[383941367,1757187059420,-500.0,0.00033296,2]
[383941369,1757187059429,-500.0,0.00033296,2]
[383941371,1757187059439,-500.0,0.00033296,2]
[383941373,1757187059448,-627.1862791,0.00033296,2]
[383941375,1757187059458,-224.81,0.000333,120]
[383941377,1757187059468,-3808.44039531,0.00033329,2]
[383941379,1757187059477,-272.05234757,0.00033334,2]
[383941381,1757187059487,-1000.0,0.00033421,3]
[383941383,1757187059496,-1000.0,0.00033421,5]
[383941385,1757187059506,-1000.0,0.00033421,5]
[383941387,1757187059515,-1000.0,0.00033421,5]
[383941389,1757187059524,-250.0,0.00033421,5]
[383941391,1757187059533,-151.0,0.00033421,2]
[383941392,1757187059543,-151.0,0.00033421,2]
[383941394,1757187059551,-224.81,0.00033437,120]
[383941396,1757187059561,-1006.0,0.000335,7]
[383941398,1757187059570,-150.0,0.00033515,2]
[383941400,1757187059580,-4108.0,0.00033524,5]
[383941402,1757187059590,-167.97,0.00033532,2]
[383941404,1757187059599,-150.0,0.00033544,2]
[383941406,1757187059608,-150.0,0.00033544,2]
[383941408,1757187059617,-150.0,0.00033544,2]
[383941410,1757187059627,-166.62,0.00033544,2]
[383941412,1757187059636,-409.88,0.00033544,2]
[383941414,1757187059645,-1079.66,0.00033544,2]
[383941416,1757187059655,-153.13,0.00033544,2]
[383941418,1757187059664,-500.0,0.0003357,3]
[383941420,1757187059674,-500.0,0.0003357,2]
[383941422,1757187059684,-500.0,0.0003357,2]
[383941424,1757187059693,-500.0,0.0003357,2]
[383941426,1757187059703,-500.0,0.0003357,2]
[383941428,1757187059714,-224.81,0.00033574,120]
[383941430,1757187059723,-1003.37497288,0.0003358,2]
[383941432,1757187059733,-15375.28386137,0.00033622,2]
[383941434,1757187059743,-3011.38049103,0.00033656,2]
[383941436,1757187059752,-5888.0,0.00033658,2]
[383941438,1757187059762,-2143.08682821,0.00033682,21]
[383941440,1757187059771,-1425.0,0.00033695,2]
[383941442,1757187059780,-250.98,0.00033698,7]
[383941443,1757187059790,-935.82,0.000337,14]
[383941445,1757187059801,-224.81,0.00033711,120]
[383941447,1757187059810,-1000.0,0.00033722,2]
[383941449,1757187059820,-151.0,0.00033724,2]
[383941451,1757187059829,-151.0,0.00033724,2]
[383941453,1757187059839,-151.0,0.00033724,2]
[383941455,1757187059848,-151.0,0.00033724,2]
[383941457,1757187059857,-151.0,0.00033724,2]
[383941459,1757187059867,-151.0,0.00033724,2]
[383941461,1757187059876,-151.0,0.00033724,2]
[383941463,1757187059886,-1425.0,0.00033726,2]
[383941465,1757187059895,-3837.0,0.00033775,7]
[383941467,1757187059904,-9733.02,0.000338,14]
[383941469,1757187059914,-3837.0,0.00033829,2]
[383941471,1757187059924,-500.0,0.00033844,3]
[383941473,1757187059933,-500.0,0.00033844,2]
[383941475,1757187059942,-500.0,0.00033844,2]
[383941477,1757187059952,-530.97384258,0.00033844,2]
[383941479,1757187059961,-224.81,0.00033848,120]
[383941481,1757187059971,-195.78687301,0.00033895,4]
[383941483,1757187059980,-183.88,0.00033942,30]
[383941485,1757187059989,-400.34,0.00033942,30]
[383941487,1757187059998,-151.0,0.00033948,7]
[383941489,1757187060008,-463.60515785,0.00033968,3]
[383941491,1757187060018,-1500.0,0.00033968,5]
[383941493,1757187060027,-1500.0,0.00033968,5]
[383941495,1757187060039,-1500.0,0.00033968,5]
[383941496,1757187060048,-350.0,0.00033968,5]
[383941498,1757187060058,-151.0,0.00033969,2]
[383941500,1757187060068,-151.0,0.00033969,2]
[383941502,1757187060077,-789.78301001,0.00033975,30]
[383941504,1757187060087,-224.81,0.00033985,120]
[383941506,1757187060096,-151.0,0.00034,7]
[383941508,1757187060105,-3808.44039531,0.00034013,2]
[383941510,1757187060114,-161.46,0.00034109,120]
[383941512,1757187060124,-547.60445245,0.00034118,3]
[383941514,1757187060133,-500.0,0.00034118,2]
[383941516,1757187060142,-500.0,0.00034118,2]
[383941518,1757187060152,-224.81,0.00034122,120]
[383941520,1757187060163,-5888.0,0.00034139,7]
[383941522,1757187060172,-1425.0,0.00034211,2]
[383941524,1757187060182,-2449.64960782,0.00034242,2]
[383941526,1757187060191,-334.5472959,0.00034242,2]
[383941528,1757187060202,-277.35679052,0.00034242,2]
[383941530,1757187060211,-160.0,0.00034242,2]
[383941532,1757187060221,-30000.0,0.00034254,30]
[383941534,1757187060231,-224.81,0.00034259,120]
[383941536,1757187060241,-1899.62297126,0.00034264,2]
[383941538,1757187060251,-12612.26469978,0.00034306,2]
[383941540,1757187060261,-1425.0,0.00034312,2]
[383941542,1757187060270,-5888.0,0.00034358,2]
[383941544,1757187060279,-3054.0,0.00034359,2]
[383941545,1757187060288,-150.0,0.00034366,2]
[383941547,1757187060298,-150.0,0.00034374,2]
[383941549,1757187060308,-250.98,0.00034383,9]
[383941551,1757187060317,-500.0,0.00034392,2]
[383941553,1757187060327,-410.46647181,0.00034392,2]
[383941555,1757187060336,-224.81,0.00034396,120]
[383941557,1757187060345,-5888.0,0.00034436,2]
[383941559,1757187060356,-191.86,0.00034486,120]
[383941561,1757187060365,-467.92862254,0.00034516,5]
[383941563,1757187060375,-2000.0,0.00034516,5]
[383941565,1757187060383,-1163.95661158,0.00034516,5]
[383941567,1757187060392,-450.0,0.00034516,5]
[383941569,1757187060402,-215.63866546,0.00034517,2]
[383941571,1757187060411,-151.0,0.00034517,2]
[383941573,1757187060420,-224.81,0.00034533,120]
[383941574,1757187060429,-500.0,0.00034567,5]
[383941575,1757187060439,-150.0,0.000346,2]
[383941576,1757187060448,-316.59773855,0.000346,2]
[383941577,1757187060457,-316.59773848,0.000346,2]
[383941578,1757187060467,-935.82,0.000346,14]
[383941579,1757187060476,-316.59773848,0.000346,2]
[383941580,1757187060485,-316.59773848,0.000346,2]
[383941581,1757187060494,-316.59773848,0.000346,2]
[383941582,1757187060503,-316.59773848,0.000346,2]
[383941583,1757187060513,-316.59773848,0.000346,2]
[383941584,1757187060522,-316.59773848,0.000346,2]
[383941585,1757187060531,-316.59773848,0.000346,2]
[383941586,1757187060541,-316.59773848,0.000346,2]
[383941587,1757187060550,-316.59773848,0.000346,2]
[383941589,1757187060559,-316.59773848,0.000346,2]
[383941591,1757187060569,-316.59773848,0.000346,2]
[383941593,1757187060578,-316.59773848,0.000346,2]
[383941595,1757187060588,-316.59773848,0.000346,2]
[383941597,1757187060597,-316.59773848,0.000346,2]
[383941599,1757187060606,-316.59773848,0.000346,2]
[383941601,1757187060615,-316.59773848,0.000346,2]
[383941603,1757187060625,-316.59773848,0.000346,2]
[383941605,1757187060634,-316.59773848,0.000346,2]
[383941607,1757187060643,-166.66,0.00034605,2]
[383941609,1757187060653,-1425.0,0.00034619,2]
[383941611,1757187060662,-200.0,0.00034628,10]
[383941613,1757187060671,-5044.0,0.00034639,2]
[383941615,1757187060680,-500.0,0.00034666,2]
[383941617,1757187060690,-224.81,0.0003467,120]
[383941619,1757187060699,-200.0,0.00034681,10]
[383941621,1757187060709,-3263.48701256,0.00034695,2]
[383941623,1757187060718,-3808.44039531,0.00034696,2]
[383941625,1757187060727,-232.7537031,0.00034704,2]
[383941627,1757187060736,-200.0,0.00034733,10]
[383941629,1757187060748,-5044.0,0.00034745,2]
[383941631,1757187060757,-1328.041,0.00034755,2]
[383941633,1757187060766,-591.581,0.00034755,2]
[383941635,1757187060775,-1578.0,0.00034755,2]
[383941637,1757187060784,-628.095,0.00034755,2]
[383941639,1757187060793,-830.0,0.00034755,2]
[383941641,1757187060802,-896.0,0.00034755,2]
[383941643,1757187060812,-4078.53,0.00034755,2]
[383941645,1757187060821,-1176.0,0.00034755,2]
[383941647,1757187060831,-1264.766,0.00034755,2]
[383941649,1757187060840,-3383.0,0.00034755,2]
[383941651,1757187060849,-885.0,0.00034755,2]
[383941653,1757187060859,-2075.283,0.00034755,2]
[383941655,1757187060868,-5000.0,0.00034764,2]
[383941657,1757187060877,-5000.0,0.00034766,2]
[383941659,1757187060886,-224.81,0.00034807,120]
[383941661,1757187060896,-1425.0,0.00034849,2]
[383941663,1757187060905,-514.58154327,0.00034872,2]
[383941665,1757187060914,-150.0,0.0003488,2]
[383941667,1757187060923,-168.91930302,0.0003489,14]
[383941669,1757187060932,-6772.97876169,0.00034894,2]
[383941671,1757187060942,-1400.0,0.000349,12]
[383941673,1757187060951,-5888.0,0.00034907,7]
[383941675,1757187060960,-500.0,0.0003494,2]
[383941677,1757187060969,-500.0,0.0003494,2]
[383941679,1757187060979,-224.91126501,0.00034944,120]
[383941681,1757187060988,-150.0,0.00034948,2]
[383941683,1757187060997,-1662.0771017,0.00034992,2]
[383941685,1757187061006,-59255.68922728,0.00034992,5]
[383941795,1757187062028,-13895.819576,0.00034992,5]
[383941995,1757187064184,-734.91204161,0.00034729,2]
[383941996,1757187064727,-690.08795839,0.00034729,2]
[383941997,1757187064737,-6165.0,0.00034755,2]
[383941998,1757187064747,-1004035.98587859,0.00034992,5]
[383941999,1757187064758,-29679.44780255,0.00034992,5]
[383942000,1757187066603,-425.81242787,0.00020468,2]
[383942001,1757187066614,-189.82623595,0.00031126,2]
[383942002,1757187066623,-725.0,0.00034755,2]
[383942003,1757187066633,-259.36237609,0.00034992,5]
[383942004,1757187215875,126.7,0.00031102,120]
[383942005,1757187693481,156.12,0.00015312,2]
[383942006,1757187693675,156.12,0.00017499,2]
[383942007,1757187693888,156.12,0.00019687,2]
[383942010,1757188098823,176.66,0.0002961,120]
[383942014,1757188231854,-500.0,0.0002042,2]
[383942015,1757188231864,-166.47344729,0.00021774,2]
[383942016,1757188231874,-72.16180785,0.00021874,2]
[383942017,1757188231885,-83.95819215,0.00021874,2]
[383942018,1757188231894,-156.12,0.00024062,2]
[383942019,1757188231905,-167.24,0.00024387,2]
[383942020,1757188231915,-1857.34191784,0.000249,2]
[383942021,1757188231926,-343.72845838,0.00026149,2]
[383942022,1757188231956,-3.55912331,0.00026149,2]
[383942023,1757188231966,-9136.3126583,0.00026149,2]
[383942024,1757188231977,-256.96969189,0.00026149,2]
[383942054,1757188232348,-7729.64580229,0.00026149,2]
[383942056,1757188232361,-396272.25595876,0.00026149,2]
[383942064,1757188232431,-6775.18227726,0.00026149,2]
[383942066,1757188232443,-1242.43109847,0.00026149,2]
[383942190,1757188237745,-372.94969855,0.00026148,2]
[383942191,1757188237755,-380.14534175,0.00026148,2]
[383942192,1757188237767,-119.85465825,0.00026148,2]
[383942193,1757188237776,-290.14183938,0.00026148,2]
[383942194,1757188237785,-500.0,0.00026148,2]
[383942195,1757188237794,-500.0,0.00026148,2]
[383942196,1757188237804,-310.70797144,0.00026148,2]
[383942197,1757188237813,-500.0,0.00026148,2]
[383942198,1757188237823,-194.13823772,0.00026148,2]
[383942199,1757188237832,-500.0,0.00026148,2]
[383942200,1757188237841,-500.0,0.00026148,2]
[383942201,1757188237851,-500.0,0.00026148,2]
[383942202,1757188237860,-575.19335308,0.00026148,2]
[383942203,1757188237869,-500.0,0.00026148,2]
[383942204,1757188237879,-500.0,0.00026148,2]
[383942205,1757188237888,-500.0,0.00026148,2]
[383942206,1757188237897,-500.0,0.00026148,2]
[383942207,1757188237907,-172.9766486,0.00026148,2]
[383942208,1757188237916,-500.0,0.00026148,2]
[383942209,1757188237925,-500.0,0.00026148,2]
[383942210,1757188237936,-500.0,0.00026148,2]
[383942211,1757188237947,-500.0,0.00026148,2]
[383942212,1757188237957,-500.0,0.00026148,2]
[383942213,1757188237967,-500.0,0.00026148,2]
[383942214,1757188237977,-36086.20082016,0.00026149,2]
[383942215,1757188237997,-439.12573643,0.00026149,2]
[383942217,1757188238025,-1067.37818342,0.00026149,2]
[383942220,1757188238044,-968.99600713,0.00026149,2]
[383942223,1757188238067,-53317.54723199,0.00026149,2]
[383942349,1757188239907,-5006.36651388,0.00026149,2]
[383942352,1757188240015,-22503.59631969,0.00026149,2]
[383942354,1757188240027,-35439.55153106,0.00026149,2]
[383942356,1757188240040,-1545.32258656,0.00026149,2]
[383942432,1757188242950,-400.0,0.00026148,2]
[383942433,1757188243108,-100.0,0.00026148,2]
[383942434,1757188243118,-612.43321083,0.00026148,2]
[383942435,1757188243128,-365.56678907,0.00026149,2]
[383942436,1757188243140,-9984.62101666,0.00026149,2]
[383942437,1757188243152,-2620.53941357,0.00026149,2]
[383944198,1757188419193,500.0,0.00013699,2]
[383944199,1757188424147,300.0,0.0003,120]
[383944200,1757188429507,300.0,0.0003,120]
[383944201,1757188429870,300.0,0.0003,120]
[383944202,1757188430236,300.0,0.0003,120]
[383944203,1757188430670,300.0,0.0003,120]
[383944204,1757188430974,300.0,0.0003,120]
[383944205,1757188431424,300.0,0.0003,120]
[383944206,1757188431571,300.0,0.0003,120]
[383944207,1757188431796,300.0,0.0003,120]
[383944208,1757188432559,300.0,0.0003,120]
[383944209,1757188433205,300.0,0.0003,120]
[383944210,1757188434683,300.0,0.0003,120]
[383944211,1757188442168,300.0,0.0003,120]
[383944212,1757188442754,300.0,0.0003,120]
[383944213,1757188443262,300.0,0.0003,120]
[383944214,1757188443730,300.0,0.0003,120]
[383944215,1757188444267,300.0,0.0003,120]
[383944216,1757188445664,300.0,0.0003,120]
[383944217,1757188445882,300.0,0.0003,120]
[383944218,1757188446145,300.0,0.0003,120]
[383944219,1757188446332,300.0,0.0003,120]
[383944220,1757188446854,300.0,0.0003,120]
[383944221,1757188447341,300.0,0.0003,120]
[383944222,1757188447838,300.0,0.0003,120]
[383944223,1757188448199,300.0,0.0003,120]
[383944224,1757188448681,300.0,0.0003,120]
[383944225,1757188478515,300.0,0.000301,120]
[383944226,1757188483968,300.0,0.000301,120]
[383944227,1757188490314,300.0,0.000301,120]
[383944228,1757188579064,300.0,0.000301,120]
[383944229,1757188582962,300.0,0.000301,120]
[383944230,1757188584078,300.0,0.000301,120]
[383944231,1757188584732,300.0,0.000301,120]
[383944232,1757188585537,300.0,0.000301,120]
[383944233,1757188586253,300.0,0.000301,120]
[383944234,1757188587860,300.0,0.000301,120]
[383944235,1757188588035,300.0,0.000301,120]
[383944236,1757188588306,300.0,0.000301,120]
[383944237,1757188589125,300.0,0.000301,120]
[383944238,1757188589803,300.0,0.000301,120]
[383944239,1757188590730,300.0,0.000301,120]
[383944240,1757188591164,300.0,0.000301,120]
[383944241,1757188591869,300.0,0.000301,120]
[383944242,1757188592483,300.0,0.000301,120]
[383944243,1757188593321,300.0,0.000301,120]
[383944244,1757188593952,300.0,0.000301,120]
[383944245,1757188594786,300.0,0.000301,120]
[383944246,1757188607719,300.0,0.000301,120]
[383944247,1757188615198,300.0,0.000301,120]
[383944248,1757188617956,300.0,0.000301,120]
[383944249,1757188790779,250.0,0.00015,2]
[383944250,1757188791883,177.32464494,0.00017,2]
[383944251,1757188791910,122.67535506,0.00017,2]
[383944252,1757188837433,319.535648,0.000301,120]
[383944253,1757188859013,151.0,0.00017,2]
[383944254,1757188863022,152.07623595,0.00017,2]
[383944255,1757188864367,151.0,0.00017,2]
[383944256,1757188985267,153.68,0.00012371,2]
[383944257,1757188985628,153.68,0.00013746,2]
[383944258,1757188985714,153.68,0.0001512,2]
[383944259,1757188985943,153.68,0.00016495,2]
[383944260,1757188986190,153.68,0.00017869,2]
[383944261,1757188986997,153.68,0.00019244,2]
[383944262,1757189050963,-153.68,0.00020618,2]
[383944263,1757189099938,-153.68,0.00021993,2]
[383944264,1757189099961,-360.32,0.00021997,2]
[383944267,1757189266398,411.0,0.00019756,2]
[383944270,1757189432229,-337.69553839,0.00021897,2]
[383944271,1757189432238,-151.0,0.00021997,2]
[383944272,1757189432248,-111.30446161,0.00021997,2]
[383944273,1757189432282,-72.77353839,0.00021997,2]
[383944274,1757189432291,-1000.0,0.00021997,2]
[383944275,1757189432301,-844.2096825,0.00022078,2]
[383944276,1757189432314,-844.2096825,0.00022194,2]
[383944277,1757189432325,-844.2096825,0.00022734,2]
[383944278,1757189432335,-844.2096825,0.00022978,2]
[383944279,1757189432344,-360.62158548,0.00022992,2]
[383944280,1757189437941,-154.22870784,0.00022992,2]
[383944281,1757189437951,-147.66815752,0.00022992,2]
[383944282,1757189437960,-86.19313464,0.00023107,2]
[383944283,1757189438048,-1113.80686536,0.00023107,2]
[383944284,1757189438057,-844.2096825,0.00023108,2]
[383944285,1757189438066,-844.2096825,0.00023306,2]
[383944286,1757189438076,-153.68,0.00023367,2]
[383944287,1757189438085,-651.03,0.00023385,2]
[383944288,1757189438094,-206.27,0.0002351,2]
[383944289,1757189438103,-300.0,0.00023578,2]
[383944290,1757189438113,-300.0,0.00023579,2]
[383944291,1757189438122,-844.2096825,0.0002358,2]
[383944292,1757189438132,-1000.0,0.00023726,2]
[383944293,1757189438142,-231.52505446,0.00023791,2]
[383944294,1757189438151,-666.0,0.00023891,3]
[383944295,1757189438161,-764.0,0.00023927,2]
[383944296,1757189438170,-13338.63,0.00023928,2]
[383944297,1757189438179,-160.0,0.00023968,7]
[383944298,1757189438189,-1000.0,0.0002397,2]
[383944299,1757189438198,-844.2096825,0.00023993,2]
[383944300,1757189438207,-628.4417657,0.00024,14]
[383944301,1757189438217,-164.69,0.00024118,2]
[383944302,1757189438227,-152.35,0.00024168,2]
[383944303,1757189438236,-844.2096825,0.00024177,2]
[383944304,1757189438246,-231.52505445,0.00024317,2]
[383944305,1757189438255,-222.09,0.0002439,2]
[383944306,1757189438264,-844.2096825,0.00024414,2]
[383944307,1757189438273,-161.46,0.00024508,2]
[383944308,1757189438283,-1000.0,0.00024616,2]
[383944309,1757189438292,-234.31,0.00024658,2]
[383944310,1757189438301,-1000.0,0.00024658,2]
[383944311,1757189438311,-844.2096825,0.00024716,2]
[383944313,1757189438324,-153.68,0.00024742,2]
[383944315,1757189438333,-3334.76,0.00024771,2]
[383944317,1757189438342,-231.52505445,0.00024842,2]
[383944319,1757189438352,-1000.0,0.00024859,2]
[383944321,1757189438361,-13291.67777039,0.0002486,2]
[383944323,1757189438370,-150.0,0.00024896,2]
[383944325,1757189438379,-2200.96312233,0.000249,2]
[383944327,1757189438389,-615.1,0.00024924,2]
[383944329,1757189438398,-164.54611902,0.00024931,2]
[383944331,1757189438409,-175.02148368,0.00024931,2]
[383944333,1757189438418,-500.0,0.00024931,2]
[383944335,1757189438426,-500.0,0.00024931,2]
[383944337,1757189438436,-500.0,0.00024931,2]
[383944339,1757189438445,-210.30634534,0.00024931,2]
[383944341,1757189438454,-61256.98751175,0.00024932,2]
[383944343,1757189438462,-261.06478899,0.00024941,2]
[383944345,1757189438472,-203.09928757,0.00024941,2]
[383944347,1757189438481,-500.0,0.00024941,2]
[383944349,1757189438490,-500.0,0.00024941,2]
[383944351,1757189438500,-278.70324758,0.00024941,2]
[383944353,1757189438509,-500.0,0.00024941,2]
[383944355,1757189438519,-353.66158001,0.00024941,2]
[383944357,1757189438528,-56028.15,0.00024942,2]
[383944358,1757189438537,-388.32,0.0002496,2]
[383944360,1757189438546,-844.2096825,0.00024962,2]
[383944363,1757189438556,-500.0,0.00024973,2]
[383944364,1757189438565,-500.0,0.00024973,2]
[383944366,1757189438575,-500.93487503,0.00024973,2]
[383944368,1757189438584,-350.0,0.00024973,2]
[383944370,1757189438594,-500.0,0.00024973,2]
[383944372,1757189438603,-500.0,0.00024973,2]
[383944374,1757189438612,-500.0,0.00024973,2]
[383944376,1757189438621,-500.0,0.00024973,2]
[383944378,1757189438630,-500.0,0.00024973,2]
[383944380,1757189438639,-500.0,0.00024973,2]
[383944382,1757189438648,-500.0,0.00024973,2]
[383944384,1757189438658,-500.0,0.00024973,2]
[383944386,1757189438667,-3617.6,0.00024993,2]
[383944388,1757189438677,-200.0,0.00024993,2]
[383944390,1757189438687,-5000.0,0.00025014,2]
[383944392,1757189438697,-2751.0,0.0002504,2]
[383944394,1757189438706,-2734.53,0.00025065,2]
[383944396,1757189438716,-250.0,0.00025092,2]
[383944398,1757189438725,-405.86,0.00025098,2]
[383944400,1757189438733,-520.9,0.00025187,2]
[383944402,1757189438742,-1680.0,0.00025197,2]
[383944404,1757189438753,-844.2096825,0.00025225,2]
[383944406,1757189438762,-1000.0,0.00025505,2]
[383944408,1757189438771,-1000.0,0.00025521,2]
[383944410,1757189438780,-500.0,0.00025521,2]
[383944412,1757189438790,-1000.0,0.00025521,2]
[383944414,1757189438799,-1000.0,0.00025521,2]
[383944416,1757189438808,-420.0,0.0002558,2]
[383944418,1757189438818,-410.0,0.00025581,2]
[383944420,1757189438828,-300.0,0.000256,9]
[383944422,1757189438837,-700.0,0.000257,9]
[383944424,1757189438847,-844.2096825,0.00025716,2]
[383944426,1757189438856,-1000.0,0.000258,9]
[383944428,1757189438866,-405.22954563,0.000258,2]
[383944430,1757189438875,-282.67560193,0.0002584,2]
[383944432,1757189438885,-166.41798901,0.00025873,2]
[383944434,1757189438895,-159.552256,0.00025873,2]
[383944436,1757189438904,-500.0,0.00025873,2]
[383944438,1757189438914,-538.64102639,0.00025873,2]
[383944440,1757189438923,-503.63152374,0.00025873,2]
[383944442,1757189438933,-500.0,0.00025873,2]
[383944444,1757189438942,-500.0,0.00025873,2]
[383944447,1757189438952,-500.0,0.00025873,2]
[383944448,1757189438961,-500.0,0.00025873,2]
[383944451,1757189438971,-500.0,0.00025873,2]
[383944453,1757189438981,-500.0,0.00025873,2]
[383944471,1757189439249,-500.0,0.00025873,2]
[383944472,1757189439271,-500.0,0.00025873,2]
[383944473,1757189439282,-500.0,0.00025873,2]
[383944474,1757189439292,-200.0,0.00025874,2]
[383944475,1757189439301,-151.0,0.00025874,2]
[383944476,1757189439311,-151.0,0.00025874,2]
[383944477,1757189439324,-151.0,0.00025874,2]
[383944478,1757189439333,-151.0,0.00025874,2]
[383944479,1757189439343,-600.0,0.00025874,2]
[383944480,1757189439352,-151.0,0.00025874,2]
[383944481,1757189439363,-151.0,0.00025874,2]
[383944482,1757189439372,-151.0,0.00025874,2]
[383944483,1757189439385,-600.0,0.00025874,2]
[383944484,1757189439399,-151.0,0.00025874,2]
[383944485,1757189439412,-600.0,0.00025874,2]
[383944486,1757189439422,-151.0,0.00025874,2]
[383944487,1757189439431,-600.0,0.00025874,2]
[383944488,1757189439441,-151.0,0.00025874,2]
[383944489,1757189439451,-500.0,0.00025874,2]
[383944490,1757189439460,-600.0,0.00025874,2]